fUSD/lending_fUSD_20260516
["ID","MTS","AMOUNT","RATE_DAILY","PERIOD"]
[422435448,1778946645000,-779.13,0.00029137,7]
[422435447,1778946645000,-259.57,0.00029137,7]
[422435449,1778946645000,-1495.36,0.00029137,7]
[422435443,1778946645000,-150.0,0.00029134,7]
[422435434,1778946645000,-152.55426955,0.00029131,7]
[422435439,1778946645000,-166.37100367,0.00029133,7]
[422435441,1778946645000,-168.43352192,0.00029133,7]
[422435437,1778946645000,-193.4812689,0.00029131,7]
[422435444,1778946645000,-781.18,0.00029137,7]
[422435436,1778946645000,-215.90665637,0.00029131,7]
[422435445,1778946645000,-1486.25,0.00029137,7]
[422435438,1778946645000,-161.56496609,0.00029131,7]
[422435523,1778946646000,-150.0,0.00029836,7]
[422435526,1778946646000,-265.32239029,0.00029836,7]
[422435527,1778946646000,-164.93242148,0.00029836,4]
[422435534,1778946646000,-345.924005,0.0002985,7]
[422435524,1778946646000,-150.0,0.00029836,7]
[422435520,1778946646000,-166.93728157,0.00029836,7]
[422435521,1778946646000,-205.77084112,0.00029836,7]
[422435515,1778946646000,-550.0,0.00029807,4]
[422435516,1778946646000,-24495.87741852,0.0002983,2]
[422435517,1778946646000,-1027.02196,0.0002983,2]
[422435533,1778946646000,-345.924005,0.0002985,7]
[422435518,1778946646000,-1027.02196,0.0002983,2]
[422435530,1778946646000,-5562.154992,0.0002985,2]
[422435542,1778946646000,-198.911634,0.0002985,7]
[422435532,1778946646000,-345.924005,0.0002985,7]
[422435525,1778946646000,-150.00000001,0.00029836,7]
[422435531,1778946646000,-11998.1178612,0.0002985,2]
[422435529,1778946646000,-1349519.6952253,0.0002985,2]
[422435528,1778946646000,-276.00105964,0.0002984,2]
[422435536,1778946646000,-199.293253,0.0002985,7]
[422435537,1778946646000,-199.293253,0.0002985,7]
[422435538,1778946646000,-199.293253,0.0002985,7]
[422435541,1778946646000,-198.911634,0.0002985,7]
[422435549,1778946646000,-2554.783969,0.0002985,7]
[422435539,1778946646000,-199.293253,0.0002985,7]
[422435543,1778946646000,-198.911634,0.0002985,7]
[422435519,1778946646000,-1027.02197,0.0002983,2]
[422435535,1778946646000,-345.924005,0.0002985,7]
[422435514,1778946646000,-152.0,0.00029803,30]
[422435486,1778946646000,-1495.36,0.00029232,7]
[422435522,1778946646000,-255.45324773,0.00029836,7]
[422435485,1778946646000,-779.2,0.00029232,7]
[422435487,1778946646000,-216.34,0.00029232,7]
[422435488,1778946646000,-257.87,0.00029232,7]
[422435498,1778946646000,-150.0,0.00029409,7]
[422435490,1778946646000,-150.0,0.00029239,4]
[422435489,1778946646000,-150.0,0.00029239,7]
[422435491,1778946646000,-1237.80329437,0.00029269,2]
[422435492,1778946646000,-550.0,0.00029273,4]
[422435499,1778946646000,-150.0,0.00029463,7]
[422435494,1778946646000,-152.0,0.00029288,7]
[422435493,1778946646000,-152.0,0.00029288,7]
[422435497,1778946646000,-150.0,0.00029397,7]
[422435496,1778946646000,-350.0,0.00029326,2]
[422435513,1778946646000,-3840.72596065,0.0002975,2]
[422435495,1778946646000,-150.0,0.00029309,7]
[422435502,1778946646000,-270.80144346,0.0002947,2]
[422435500,1778946646000,-350.0,0.00029468,3]
[422435504,1778946646000,-150.0,0.00029504,7]
[422435505,1778946646000,-150.0,0.00029534,2]
[422435506,1778946646000,-150.0,0.00029537,7]
[422435503,1778946646000,-150.0,0.00029485,7]
[422435540,1778946646000,-151.0,0.0002985,7]
[422435507,1778946646000,-500.0,0.00029549,2]
[422435508,1778946646000,-1033.5629698,0.00029563,2]
[422435509,1778946646000,-150.0,0.00029572,7]
[422435510,1778946646000,-440.29322813,0.00029631,2]
[422435511,1778946646000,-150.0,0.0002966,7]
[422435512,1778946646000,-150.0,0.00029748,7]
[422435501,1778946646000,-200.0,0.0002947,2]
[422435547,1778946646000,-2554.783969,0.0002985,7]
[422435582,1778946646000,-500.0,0.0002985,2]
[422435546,1778946646000,-2554.783969,0.0002985,7]
[422435583,1778946646000,-500.0,0.0002985,2]
[422435586,1778946646000,-500.0,0.0002985,2]
[422435578,1778946646000,-500.0,0.0002985,2]
[422435580,1778946646000,-500.0,0.0002985,2]
[422435581,1778946646000,-151.0,0.0002985,7]
[422435588,1778946646000,-157.278708,0.0002985,7]
[422435587,1778946646000,-500.0,0.0002985,2]
[422435590,1778946646000,-500.0,0.0002985,2]
[422435591,1778946646000,-500.0,0.0002985,2]
[422435599,1778946646000,-500.0,0.0002985,2]
[422435600,1778946646000,-500.0,0.0002985,2]
[422435593,1778946646000,-500.0,0.0002985,2]
[422435592,1778946646000,-1158.867927,0.0002985,7]
[422435594,1778946646000,-500.0,0.0002985,2]
[422435596,1778946646000,-500.0,0.0002985,2]
[422435598,1778946646000,-500.0,0.0002985,2]
[422435595,1778946646000,-500.0,0.0002985,2]
[422435597,1778946646000,-1158.867927,0.0002985,7]
[422435601,1778946646000,-500.0,0.0002985,2]
[422435603,1778946646000,-500.0,0.0002985,2]
[422435606,1778946646000,-500.0,0.0002985,2]
[422435604,1778946646000,-500.0,0.0002985,2]
[422435607,1778946646000,-151.0,0.0002985,7]
[422435605,1778946646000,-500.0,0.0002985,2]
[422435602,1778946646000,-500.0,0.0002985,2]
[422435608,1778946646000,-500.0,0.0002985,2]
[422435544,1778946646000,-198.911634,0.0002985,7]
[422435579,1778946646000,-500.0,0.0002985,2]
[422435585,1778946646000,-500.0,0.0002985,2]
[422435609,1778946646000,-500.0,0.0002985,2]
[422435576,1778946646000,-500.0,0.0002985,2]
[422435545,1778946646000,-2554.783969,0.0002985,7]
[422435551,1778946646000,-151.0,0.0002985,7]
[422435561,1778946646000,-500.0,0.0002985,2]
[422435562,1778946646000,-500.0,0.0002985,2]
[422435550,1778946646000,-151.0,0.0002985,7]
[422435552,1778946646000,-151.0,0.0002985,7]
[422435554,1778946646000,-500.0,0.0002985,2]
[422435553,1778946646000,-151.0,0.0002985,7]
[422435560,1778946646000,-500.0,0.0002985,2]
[422435559,1778946646000,-500.0,0.0002985,2]
[422435557,1778946646000,-500.0,0.0002985,2]
[422435555,1778946646000,-500.0,0.0002985,2]
[422435558,1778946646000,-500.0,0.0002985,2]
[422435556,1778946646000,-500.0,0.0002985,2]
[422435575,1778946646000,-500.0,0.0002985,2]
[422435577,1778946646000,-1158.867927,0.0002985,7]
[422435563,1778946646000,-500.0,0.0002985,2]
[422435571,1778946646000,-500.0,0.0002985,2]
[422435570,1778946646000,-500.0,0.0002985,2]
[422435573,1778946646000,-500.0,0.0002985,2]
[422435572,1778946646000,-500.0,0.0002985,2]
[422435574,1778946646000,-500.0,0.0002985,2]
[422435584,1778946646000,-1158.867927,0.0002985,7]
[422435567,1778946646000,-500.0,0.0002985,2]
[422435564,1778946646000,-500.0,0.0002985,2]
[422435568,1778946646000,-500.0,0.0002985,2]
[422435565,1778946646000,-500.0,0.0002985,2]
[422435566,1778946646000,-500.0,0.0002985,2]
[422435569,1778946646000,-500.0,0.0002985,2]
[422435647,1778946647000,-500.0,0.0002985,2]
[422435648,1778946647000,-500.0,0.0002985,2]
[422435646,1778946647000,-500.0,0.0002985,2]
[422435641,1778946647000,-500.0,0.0002985,2]
[422435645,1778946647000,-500.0,0.0002985,2]
[422435643,1778946647000,-500.0,0.0002985,2]
[422435642,1778946647000,-500.0,0.0002985,2]
[422435638,1778946647000,-500.0,0.0002985,2]
[422435640,1778946647000,-500.0,0.0002985,2]
[422435662,1778946647000,-373.120199,0.0002985,7]
[422435644,1778946647000,-500.0,0.0002985,2]
[422435650,1778946647000,-500.0,0.0002985,2]
[422435667,1778946647000,-570.176498,0.0002985,7]
[422435654,1778946647000,-151.0,0.0002985,7]
[422435658,1778946647000,-340.951159,0.0002985,7]
[422435661,1778946647000,-373.120199,0.0002985,7]
[422435655,1778946647000,-369.457443,0.0002985,7]
[422435657,1778946647000,-340.951159,0.0002985,7]
[422435656,1778946647000,-340.951159,0.0002985,7]
[422435651,1778946647000,-170.940753,0.0002985,2]
[422435660,1778946647000,-151.0,0.0002985,7]
[422435663,1778946647000,-151.0,0.0002985,7]
[422435659,1778946647000,-340.951159,0.0002985,7]
[422435653,1778946647000,-369.457443,0.0002985,7]
[422435664,1778946647000,-570.176498,0.0002985,7]
[422435649,1778946647000,-369.457443,0.0002985,7]
[422435652,1778946647000,-369.457443,0.0002985,7]
[422435639,1778946647000,-500.0,0.0002985,2]
[422435622,1778946647000,-500.0,0.0002985,2]
[422435635,1778946647000,-500.0,0.0002985,2]
[422435666,1778946647000,-570.176498,0.0002985,7]
[422435610,1778946647000,-500.0,0.0002985,2]
[422435612,1778946647000,-500.0,0.0002985,2]
[422435613,1778946647000,-195.921761,0.0002985,7]
[422435611,1778946647000,-500.0,0.0002985,2]
[422435615,1778946647000,-500.0,0.0002985,2]
[422435625,1778946647000,-500.0,0.0002985,2]
[422435614,1778946647000,-500.0,0.0002985,2]
[422435616,1778946647000,-500.0,0.0002985,2]
[422435619,1778946647000,-500.0,0.0002985,2]
[422435617,1778946647000,-500.0,0.0002985,2]
[422435618,1778946647000,-500.0,0.0002985,2]
[422435631,1778946647000,-500.0,0.0002985,2]
[422435621,1778946647000,-500.0,0.0002985,2]
[422435623,1778946647000,-500.0,0.0002985,2]
[422435624,1778946647000,-500.0,0.0002985,2]
[422435627,1778946647000,-500.0,0.0002985,2]
[422435637,1778946647000,-500.0,0.0002985,2]
[422435628,1778946647000,-500.0,0.0002985,2]
[422435626,1778946647000,-500.0,0.0002985,2]
[422435629,1778946647000,-500.0,0.0002985,2]
[422435630,1778946647000,-500.0,0.0002985,2]
[422435632,1778946647000,-500.0,0.0002985,2]
[422435634,1778946647000,-500.0,0.0002985,2]
[422435636,1778946647000,-500.0,0.0002985,2]
[422435633,1778946647000,-500.0,0.0002985,2]
[422435620,1778946647000,-500.0,0.0002985,2]
[422435669,1778946647000,-373.120199,0.0002985,7]
[422435676,1778946647000,-361.895303,0.0002985,7]
[422435675,1778946647000,-230.255192,0.0002985,7]
[422435698,1778946647000,-484.844232,0.0002985,7]
[422435703,1778946647000,-151.0,0.0002985,7]
[422435702,1778946647000,-484.844232,0.0002985,7]
[422435706,1778946647000,-151.0,0.0002985,7]
[422435708,1778946647000,-151.0,0.0002985,7]
[422435705,1778946647000,-484.844232,0.0002985,7]
[422435704,1778946647000,-151.0,0.0002985,7]
[422435707,1778946647000,-151.0,0.0002985,7]
[422435710,1778946647000,-6391.9577292,0.00029903,2]
[422435720,1778946647000,-500.0,0.00029999,2]
[422435716,1778946647000,-500.0,0.00029999,2]
[422435713,1778946647000,-295.23802148,0.00029999,2]
[422435714,1778946647000,-230.979569,0.00029999,2]
[422435719,1778946647000,-500.0,0.00029999,2]
[422435715,1778946647000,-500.0,0.00029999,2]
[422435709,1778946647000,-133043.7741955,0.00029903,2]
[422435718,1778946647000,-500.0,0.00029999,2]
[422435717,1778946647000,-356.95185592,0.00029999,2]
[422435712,1778946647000,-500.0,0.00029999,2]
[422435711,1778946647000,-213.37737141,0.00029982,2]
[422435721,1778946647000,-500.0,0.00029999,2]
[422435723,1778946647000,-500.0,0.00029999,2]
[422435722,1778946647000,-260.0008576,0.00029999,2]
[422435724,1778946647000,-729.28338742,0.00029999,2]
[422435668,1778946647000,-373.120199,0.0002985,7]
[422435725,1778946647000,-161.0,0.0003,3]
[422435726,1778946647000,-200.0,0.00030018,2]
[422435700,1778946647000,-484.844232,0.0002985,7]
[422435699,1778946647000,-222.380445,0.0002985,7]
[422435727,1778946647000,-235.94032042,0.0003003,2]
[422435701,1778946647000,-222.380445,0.0002985,7]
[422435665,1778946647000,-570.176498,0.0002985,7]
[422435673,1778946647000,-361.895303,0.0002985,7]
[422435674,1778946647000,-151.0,0.0002985,7]
[422435670,1778946647000,-361.895303,0.0002985,7]
[422435671,1778946647000,-361.895303,0.0002985,7]
[422435672,1778946647000,-151.0,0.0002985,7]
[422435678,1778946647000,-230.255192,0.0002985,7]
[422435696,1778946647000,-222.380445,0.0002985,7]
[422435689,1778946647000,-1763.02757,0.0002985,7]
[422435677,1778946647000,-177.895226,0.0002985,7]
[422435682,1778946647000,-151.0,0.0002985,7]
[422435686,1778946647000,-151.0,0.0002985,7]
[422435683,1778946647000,-151.0,0.0002985,7]
[422435688,1778946647000,-1763.02757,0.0002985,7]
[422435679,1778946647000,-230.255192,0.0002985,7]
[422435697,1778946647000,-222.380445,0.0002985,7]
[422435680,1778946647000,-230.255192,0.0002985,7]
[422435691,1778946647000,-151.0,0.0002985,7]
[422435694,1778946647000,-151.0,0.0002985,7]
[422435693,1778946647000,-151.0,0.0002985,7]
[422435695,1778946647000,-151.0,0.0002985,7]
[422435690,1778946647000,-1763.02757,0.0002985,7]
[422435684,1778946647000,-151.0,0.0002985,7]
[422435685,1778946647000,-151.0,0.0002985,7]
[422435681,1778946647000,-151.0,0.0002985,7]
[422435687,1778946647000,-1763.02757,0.0002985,7]
[422435692,1778946647000,-151.0,0.0002985,7]
[422435764,1778946648000,-1540.0,0.0003013,7]
[422435775,1778946648000,-151.0,0.0003013,7]
[422435766,1778946648000,-1540.0,0.0003013,7]
[422435765,1778946648000,-151.0,0.0003013,7]
[422435754,1778946648000,-300.0,0.00030129,10]
[422435759,1778946648000,-1368471.41123778,0.0003013,7]
[422435762,1778946648000,-1540.0,0.0003013,7]
[422435760,1778946648000,-151.0,0.0003013,2]
[422435761,1778946648000,-1540.0,0.0003013,7]
[422435758,1778946648000,-150.0,0.00030129,2]
[422435767,1778946648000,-151.0,0.0003013,7]
[422435783,1778946648000,-199.293253,0.0003013,7]
[422435772,1778946648000,-891.07889096,0.0003013,2]
[422435774,1778946648000,-151.0,0.0003013,7]
[422435773,1778946648000,-151.0,0.0003013,7]
[422435770,1778946648000,-1540.0,0.0003013,7]
[422435771,1778946648000,-207.91673118,0.0003013,7]
[422435769,1778946648000,-151.0,0.0003013,7]
[422435777,1778946648000,-345.924005,0.0003013,7]
[422435787,1778946648000,-198.911634,0.0003013,7]
[422435788,1778946648000,-198.911634,0.0003013,7]
[422435776,1778946648000,-151.0,0.0003013,7]
[422435778,1778946648000,-345.924005,0.0003013,7]
[422435756,1778946648000,-300.0,0.00030129,10]
[422435768,1778946648000,-1540.0,0.0003013,7]
[422435755,1778946648000,-300.0,0.00030129,10]
[422435743,1778946648000,-313.0,0.00030103,30]
[422435757,1778946648000,-300.0,0.00030129,10]
[422435782,1778946648000,-199.293253,0.0003013,7]
[422435730,1778946648000,-150.0,0.00030037,2]
[422435729,1778946648000,-150.0,0.00030037,2]
[422435728,1778946648000,-159.14153599,0.0003003,2]
[422435732,1778946648000,-150.98,0.000301,7]
[422435733,1778946648000,-212.42,0.000301,2]
[422435736,1778946648000,-412.0,0.000301,7]
[422435735,1778946648000,-194.168,0.000301,22]
[422435737,1778946648000,-458.3087259,0.000301,2]
[422435734,1778946648000,-200.0,0.000301,10]
[422435739,1778946648000,-458.30872588,0.000301,2]
[422435741,1778946648000,-1250.0,0.00030103,30]
[422435738,1778946648000,-458.30872588,0.000301,2]
[422435740,1778946648000,-200.0,0.000301,2]
[422435745,1778946648000,-166.0,0.00030107,30]
[422435742,1778946648000,-394.0,0.00030103,30]
[422435744,1778946648000,-179.0,0.00030103,30]
[422435746,1778946648000,-151.0,0.00030108,30]
[422435747,1778946648000,-515.0,0.00030108,30]
[422435749,1778946648000,-295.0,0.00030108,30]
[422435750,1778946648000,-309.0,0.00030108,30]
[422435748,1778946648000,-884.0,0.00030108,30]
[422435751,1778946648000,-576.0,0.00030109,30]
[422435752,1778946648000,-156.0,0.00030109,30]
[422435763,1778946648000,-1540.0,0.0003013,7]
[422435753,1778946648000,-151.0,0.00030127,7]
[422435784,1778946648000,-199.293253,0.0003013,7]
[422435731,1778946648000,-400.0,0.0003007,2]
[422435779,1778946648000,-345.924005,0.0003013,7]
[422435817,1778946648000,-373.120199,0.0003013,7]
[422435816,1778946648000,-1027.02197,0.0003013,4]
[422435819,1778946648000,-151.0,0.0003013,7]
[422435813,1778946648000,-208.119793,0.0003013,7]
[422435814,1778946648000,-1027.02196,0.0003013,4]
[422435820,1778946648000,-570.176498,0.0003013,7]
[422435815,1778946648000,-1027.02196,0.0003013,4]
[422435821,1778946648000,-570.176498,0.0003013,7]
[422435818,1778946648000,-373.120199,0.0003013,7]
[422435824,1778946648000,-373.120199,0.0003013,7]
[422435827,1778946648000,-361.895303,0.0003013,7]
[422435825,1778946648000,-373.120199,0.0003013,7]
[422435834,1778946648000,-230.255192,0.0003013,7]
[422435826,1778946648000,-361.895303,0.0003013,7]
[422435829,1778946648000,-361.895303,0.0003013,7]
[422435831,1778946648000,-230.255192,0.0003013,7]
[422435830,1778946648000,-151.0,0.0003013,7]
[422435835,1778946648000,-230.255192,0.0003013,7]
[422435832,1778946648000,-361.895303,0.0003013,7]
[422435839,1778946648000,-151.0,0.0003013,7]
[422435833,1778946648000,-230.255192,0.0003013,7]
[422435837,1778946648000,-151.0,0.0003013,7]
[422435838,1778946648000,-151.0,0.0003013,7]
[422435836,1778946648000,-151.0,0.0003013,7]
[422435785,1778946648000,-154.68493,0.0003013,7]
[422435823,1778946648000,-570.176498,0.0003013,7]
[422435822,1778946648000,-570.176498,0.0003013,7]
[422435828,1778946648000,-151.0,0.0003013,7]
[422435812,1778946648000,-340.951159,0.0003013,7]
[422435780,1778946648000,-345.924005,0.0003013,7]
[422435811,1778946648000,-340.951159,0.0003013,7]
[422435781,1778946648000,-199.293253,0.0003013,7]
[422435786,1778946648000,-198.911634,0.0003013,7]
[422435789,1778946648000,-198.911634,0.0003013,7]
[422435790,1778946648000,-2554.783969,0.0003013,7]
[422435800,1778946648000,-1158.867927,0.0003013,7]
[422435791,1778946648000,-2554.783969,0.0003013,7]
[422435792,1778946648000,-2554.783969,0.0003013,7]
[422435794,1778946648000,-151.0,0.0003013,7]
[422435795,1778946648000,-151.0,0.0003013,7]
[422435796,1778946648000,-151.0,0.0003013,7]
[422435798,1778946648000,-1158.867927,0.0003013,7]
[422435793,1778946648000,-2554.783969,0.0003013,7]
[422435808,1778946648000,-369.457443,0.0003013,7]
[422435805,1778946648000,-369.457443,0.0003013,7]
[422435799,1778946648000,-151.0,0.0003013,7]
[422435806,1778946648000,-369.457443,0.0003013,7]
[422435809,1778946648000,-340.951159,0.0003013,7]
[422435807,1778946648000,-151.0,0.0003013,7]
[422435810,1778946648000,-340.951159,0.0003013,7]
[422435803,1778946648000,-151.0,0.0003013,7]
[422435802,1778946648000,-1158.867927,0.0003013,7]
[422435801,1778946648000,-1158.867927,0.0003013,7]
[422435797,1778946648000,-195.596786,0.0003013,7]
[422435804,1778946648000,-369.457443,0.0003013,7]
[422435875,1778946649000,-160.0,0.00030137,8]
[422435881,1778946649000,-300.0,0.00030199,10]
[422435878,1778946649000,-200.0,0.00030137,2]
[422435879,1778946649000,-2000.0,0.00030137,2]
[422435873,1778946649000,-800.0,0.00030137,30]
[422435871,1778946649000,-193.03845054,0.00030136,2]
[422435872,1778946649000,-200.0,0.00030137,2]
[422435874,1778946649000,-1909.32,0.00030137,30]
[422435870,1778946649000,-200.0,0.00030136,2]
[422435880,1778946649000,-200.0,0.00030137,2]
[422435876,1778946649000,-4177.35186614,0.00030137,30]
[422435882,1778946649000,-1492.298252,0.000302,2]
[422435893,1778946649000,-1000.0,0.0003021,2]
[422435883,1778946649000,-15777.83035424,0.000302,2]
[422435889,1778946649000,-1000.0,0.0003021,2]
[422435884,1778946649000,-160.259679,0.000302,2]
[422435886,1778946649000,-1007.64,0.000302,7]
[422435887,1778946649000,-300.0,0.000302,10]
[422435885,1778946649000,-401.9,0.000302,2]
[422435891,1778946649000,-1000.0,0.0003021,2]
[422435890,1778946649000,-1000.0,0.0003021,2]
[422435894,1778946649000,-1239.9,0.00030239,2]
[422435901,1778946649000,-550.0,0.00030341,5]
[422435892,1778946649000,-1000.0,0.0003021,2]
[422435869,1778946649000,-200.0,0.00030136,2]
[422435888,1778946649000,-150.0,0.00030205,2]
[422435877,1778946649000,-150.0,0.00030137,30]
[422435840,1778946649000,-151.0,0.0003013,7]
[422435868,1778946649000,-300.0,0.00030136,10]
[422435842,1778946649000,-1763.02757,0.0003013,7]
[422435897,1778946649000,-1000.0,0.00030291,2]
[422435843,1778946649000,-1763.02757,0.0003013,7]
[422435844,1778946649000,-1763.02757,0.0003013,7]
[422435845,1778946649000,-1763.02757,0.0003013,7]
[422435846,1778946649000,-151.0,0.0003013,7]
[422435847,1778946649000,-151.0,0.0003013,7]
[422435850,1778946649000,-151.0,0.0003013,7]
[422435848,1778946649000,-151.0,0.0003013,7]
[422435853,1778946649000,-484.844232,0.0003013,7]
[422435854,1778946649000,-222.380445,0.0003013,7]
[422435851,1778946649000,-222.380445,0.0003013,7]
[422435867,1778946649000,-352.0203254,0.00030136,10]
[422435849,1778946649000,-151.0,0.0003013,7]
[422435856,1778946649000,-222.380445,0.0003013,7]
[422435855,1778946649000,-484.844232,0.0003013,7]
[422435862,1778946649000,-151.0,0.0003013,7]
[422435857,1778946649000,-484.844232,0.0003013,7]
[422435860,1778946649000,-484.844232,0.0003013,7]
[422435859,1778946649000,-151.0,0.0003013,7]
[422435865,1778946649000,-300.0,0.00030136,10]
[422435863,1778946649000,-151.0,0.0003013,7]
[422435864,1778946649000,-178.88433148,0.0003013,2]
[422435861,1778946649000,-151.0,0.0003013,7]
[422435858,1778946649000,-151.0,0.0003013,7]
[422435866,1778946649000,-300.0,0.00030136,10]
[422435852,1778946649000,-222.380445,0.0003013,7]
[422435899,1778946649000,-1000.0,0.00030291,2]
[422435841,1778946649000,-151.0,0.0003013,7]
[422435900,1778946649000,-2312.0,0.00030312,3]
[422435928,1778946649000,-152.77200367,0.00030536,7]
[422435934,1778946649000,-175.93766608,0.00030536,2]
[422435933,1778946649000,-234.79374812,0.00030536,7]
[422435935,1778946649000,-168.73247757,0.00030536,7]
[422435938,1778946649000,-155.10066185,0.00030536,2]
[422435932,1778946649000,-303.94310147,0.00030536,7]
[422435930,1778946649000,-182.00102973,0.00030536,7]
[422435931,1778946649000,-223.15629812,0.00030536,2]
[422435937,1778946649000,-303.55919928,0.00030536,7]
[422435936,1778946649000,-247.72702021,0.00030536,7]
[422435941,1778946649000,-200.0,0.00030566,2]
[422435951,1778946649000,-1250.0,0.00030735,2]
[422435939,1778946649000,-621.78829552,0.00030564,2]
[422435942,1778946649000,-631.27,0.000306,7]
[422435943,1778946649000,-164.32,0.00030644,7]
[422435946,1778946649000,-1250.0,0.00030735,2]
[422435947,1778946649000,-1250.0,0.00030735,2]
[422435944,1778946649000,-1250.0,0.00030735,2]
[422435950,1778946649000,-1250.0,0.00030735,2]
[422435948,1778946649000,-1250.0,0.00030735,2]
[422435945,1778946649000,-1250.0,0.00030735,2]
[422435949,1778946649000,-1250.0,0.00030735,2]
[422435953,1778946649000,-1078.0,0.00030735,2]
[422435952,1778946649000,-1250.0,0.00030735,2]
[422435954,1778946649000,-200.0,0.00030742,2]
[422435895,1778946649000,-1000.0,0.00030291,2]
[422435940,1778946649000,-712.63107374,0.00030564,2]
[422435929,1778946649000,-308.74415626,0.00030536,7]
[422435955,1778946649000,-200.0,0.00030742,2]
[422435921,1778946649000,-2000.0,0.00030462,2]
[422435898,1778946649000,-1000.0,0.00030291,2]
[422435896,1778946649000,-1000.0,0.00030291,2]
[422435911,1778946649000,-2000.0,0.00030462,2]
[422435902,1778946649000,-350.0,0.00030345,4]
[422435912,1778946649000,-2000.0,0.00030462,2]
[422435913,1778946649000,-2000.0,0.00030462,2]
[422435914,1778946649000,-2000.0,0.00030462,2]
[422435920,1778946649000,-2000.0,0.00030462,2]
[422435903,1778946649000,-500.0,0.00030356,2]
[422435910,1778946649000,-2000.0,0.00030462,2]
[422435909,1778946649000,-200.0,0.00030438,2]
[422435907,1778946649000,-200.0,0.00030437,2]
[422435904,1778946649000,-300.0,0.00030431,10]
[422435906,1778946649000,-200.0,0.00030437,2]
[422435905,1778946649000,-2000.0,0.00030432,2]
[422435925,1778946649000,-336.86704385,0.00030491,7]
[422435908,1778946649000,-200.0,0.00030438,2]
[422435922,1778946649000,-2000.0,0.00030462,2]
[422435927,1778946649000,-166.22850899,0.00030536,7]
[422435924,1778946649000,-354.51446924,0.00030488,7]
[422435923,1778946649000,-2000.0,0.00030462,2]
[422435926,1778946649000,-319.14000425,0.00030536,7]
[422435917,1778946649000,-2000.0,0.00030462,2]
[422435916,1778946649000,-2000.0,0.00030462,2]
[422435918,1778946649000,-2000.0,0.00030462,2]
[422435915,1778946649000,-2000.0,0.00030462,2]
[422435919,1778946649000,-2000.0,0.00030462,2]
[422435990,1778946650000,-930.0,0.00031183,2]
[422435992,1778946650000,-3783.38074751,0.00031187,2]
[422435991,1778946650000,-417.0,0.00031183,2]
[422435996,1778946650000,-150.0,0.00031307,2]
[422435987,1778946650000,-625.0,0.00031183,2]
[422435988,1778946650000,-150.0,0.00031183,2]
[422435995,1778946650000,-150.0,0.00031307,2]
[422435997,1778946650000,-150.0,0.00031307,2]
[422435989,1778946650000,-1270.0,0.00031183,2]
[422435986,1778946650000,-3543.0,0.00031183,2]
[422435993,1778946650000,-159.298074,0.00031192,120]
[422436008,1778946650000,-261.88337364,0.00031392,7]
[422435998,1778946650000,-200.0,0.0003136,2]
[422436009,1778946650000,-242.68222151,0.00031392,7]
[422436002,1778946650000,-150.0,0.00031366,2]
[422436001,1778946650000,-200.0,0.00031361,2]
[422435999,1778946650000,-200.0,0.0003136,2]
[422436000,1778946650000,-200.0,0.00031361,2]
[422436004,1778946650000,-216.35884091,0.00031392,7]